[Event "*** Titled Tuesday Blitz"]
[Site "Chess.com"]
[Date "2019.03.05"]
[Round "8"]
[White "b_6"]
[Black "Korchmar_Vasiliy"]
[Result "0-1"]
[WhiteElo "2437"]
[BlackElo "2769"]
[TimeControl "180+2"]
[EndTime "14:58:36 PST"]
[Termination "Korchmar_Vasiliy won by resignation"]

1. d4 {[%clk 0:03:01.9]} 1... Nf6 {[%clk 0:02:59.3]} 2. Bf4 {[%clk 0:03:00.9]}
2... d5 {[%clk 0:03:00.2]} 3. e3 {[%clk 0:03:01.9]} 3... c5 {[%clk 0:03:00.8]}
4. c3 {[%clk 0:03:02.3]} 4... Nc6 {[%clk 0:03:01.9]} 5. Nd2 {[%clk 0:03:03.2]}
5... Bf5 {[%clk 0:02:57.5]} 6. Ngf3 {[%clk 0:03:04]} 6... Qb6 {[%clk 0:02:53.6]}
7. Nh4 {[%clk 0:02:59.3]} 7... Bg4 {[%clk 0:02:48.3]} 8. Qb3 {[%clk 0:02:50.8]}
8... c4 {[%clk 0:02:49.7]} 9. Qc2 {[%clk 0:02:51.5]} 9... h6 {[%clk 0:02:47.1]}
10. h3 {[%clk 0:02:40.7]} 10... Bd7 {[%clk 0:02:40.9]} 11. Nhf3 {[%clk 0:02:34]}
11... g6 {[%clk 0:02:38.6]} 12. g4 {[%clk 0:02:12.9]} 12... h5 {[%clk
0:02:39.6]} 13. g5 {[%clk 0:02:03.9]} 13... Bf5 {[%clk 0:02:40.8]} 14. Qc1
{[%clk 0:02:05.1]} 14... Nd7 {[%clk 0:02:30.6]} 15. Nh4 {[%clk 0:01:44.2]} 15...
Be6 {[%clk 0:02:31.8]} 16. b3 {[%clk 0:01:41.2]} 16... cxb3 {[%clk 0:02:29.7]}
17. axb3 {[%clk 0:01:41.8]} 17... Rc8 {[%clk 0:02:29.5]} 18. Qb2 {[%clk
0:01:35.1]} 18... Bg7 {[%clk 0:02:30.6]} 19. Bd3 {[%clk 0:01:34.6]} 19... O-O
{[%clk 0:02:31.2]} 20. Kf1 {[%clk 0:01:29.8]} 20... Rfe8 {[%clk 0:02:09.7]} 21.
Kg2 {[%clk 0:01:25.4]} 21... Nf8 {[%clk 0:02:11.2]} 22. b4 {[%clk 0:01:07.8]}
22... Bd7 {[%clk 0:02:06]} 23. b5 {[%clk 0:00:58.3]} 23... e5 {[%clk 0:02:07.3]}
24. Bg3 {[%clk 0:00:50.5]} 24... exd4 {[%clk 0:01:49.2]} 25. cxd4 {[%clk
0:00:48.1]} 25... Nxd4 {[%clk 0:01:44]} 26. exd4 {[%clk 0:00:42]} 26... Bxd4
{[%clk 0:01:45.9]} 27. Qa2 {[%clk 0:00:36]} 27... Bxa1 {[%clk 0:01:46.9]} 28.
Rxa1 {[%clk 0:00:34.6]} 28... Bxb5 {[%clk 0:01:10.9]} 29. Bxb5 {[%clk
0:00:34.7]} 29... Qxb5 {[%clk 0:01:12.8]} 30. Qxa7 {[%clk 0:00:24.7]} 30... Rc2
{[%clk 0:01:13]} 31. Nhf3 {[%clk 0:00:21.6]} 31... Ne6 {[%clk 0:01:14.2]} 32.
Qe3 {[%clk 0:00:16.5]} 32... Ng7 {[%clk 0:01:10.5]} 33. Qb3 {[%clk 0:00:15.8]}
33... Qxb3 {[%clk 0:01:01.6]} 34. Nxb3 {[%clk 0:00:16.8]} 34... Nf5 {[%clk
0:01:03.5]} 35. Nfd4 {[%clk 0:00:16.7]} 35... Nxd4 {[%clk 0:01:04.4]} 36. Nxd4
{[%clk 0:00:18.6]} 36... Rc4 {[%clk 0:01:01.1]} 37. Nf3 {[%clk 0:00:18.8]} 37...
b5 {[%clk 0:00:58.3]} 38. Rd1 {[%clk 0:00:19]} 38... Rd8 {[%clk 0:00:56.2]} 39.
Be5 {[%clk 0:00:15.3]} 39... b4 {[%clk 0:00:57.6]} 40. Bd4 {[%clk 0:00:15.9]}
40... b3 {[%clk 0:00:57.2]} 41. Rb1 {[%clk 0:00:16.8]} 41... Rb8 {[%clk
0:00:54]} 42. Kf1 {[%clk 0:00:16.7]} 42... Rc2 {[%clk 0:00:55]} 43. Ke1 {[%clk
0:00:18]} 43... b2 {[%clk 0:00:44.2]} 44. Kd1 {[%clk 0:00:18.5]} 44... Rc4
{[%clk 0:00:45.8]} 45. Bxb2 {[%clk 0:00:17.6]} 45... Rf4 {[%clk 0:00:40.8]} 46.
Nd2 {[%clk 0:00:07.6]} 46... Rxf2 {[%clk 0:00:40.3]} 47. Kc2 {[%clk 0:00:09]}
47... Rh2 {[%clk 0:00:39]} 48. Ra1 {[%clk 0:00:07.7]} 48... Rxb2+ {[%clk
0:00:36.9]} 49. Kxb2 {[%clk 0:00:09.6]} 49... Rxd2+ {[%clk 0:00:38.4]} 50. Kc3
{[%clk 0:00:11.3]} 50... Rh2 {[%clk 0:00:38.9]} 51. Kd4 {[%clk 0:00:11.3]} 51...
Rxh3 {[%clk 0:00:39.4]} 52. Kxd5 {[%clk 0:00:12.6]} 52... Rg3 {[%clk 0:00:40.5]}
0-1

[Event "*** Titled Tuesday Blitz"]
[Site "Chess.com"]
[Date "2019.03.05"]
[Round "8"]
[White "Koksik_13"]
[Black "quesfr"]
[Result "1-0"]
[WhiteElo "2642"]
[BlackElo "2239"]
[TimeControl "180+2"]
[EndTime "14:58:40 PST"]
[Termination "Koksik_13 won by resignation"]

1. e4 {[%clk 0:02:58.7]} 1... e6 {[%clk 0:03:00.2]} 2. d4 {[%clk 0:02:59]} 2...
d5 {[%clk 0:03:01.2]} 3. Nc3 {[%clk 0:02:58]} 3... dxe4 {[%clk 0:03:00.6]} 4.
Nxe4 {[%clk 0:02:59]} 4... Nd7 {[%clk 0:03:01.7]} 5. Nf3 {[%clk 0:02:59.6]} 5...
Ngf6 {[%clk 0:03:01.4]} 6. Ng3 {[%clk 0:03:01.5]} 6... c5 {[%clk 0:03:01.6]} 7.
Bd3 {[%clk 0:03:03.4]} 7... b6 {[%clk 0:02:56.4]} 8. O-O {[%clk 0:03:05.3]} 8...
Bb7 {[%clk 0:02:57.6]} 9. c3 {[%clk 0:03:04.4]} 9... Bd6 {[%clk 0:02:53.2]} 10.
Re1 {[%clk 0:03:05.2]} 10... O-O {[%clk 0:02:54.1]} 11. Qc2 {[%clk 0:03:03.5]}
11... Bxf3 {[%clk 0:02:48.5]} 12. gxf3 {[%clk 0:03:04.6]} 12... cxd4 {[%clk
0:02:48.6]} 13. cxd4 {[%clk 0:03:06.5]} 13... Qc7 {[%clk 0:02:09.2]} 14. Qe2
{[%clk 0:03:04.6]} 14... Nd5 {[%clk 0:02:00.2]} 15. Bd2 {[%clk 0:03:03.9]} 15...
N7f6 {[%clk 0:01:58.5]} 16. Rac1 {[%clk 0:03:04.8]} 16... Qd8 {[%clk 0:01:49.8]}
17. Ne4 {[%clk 0:03:05.9]} 17... Bf4 {[%clk 0:01:45.4]} 18. Kh1 {[%clk
0:03:04.2]} 18... Bxd2 {[%clk 0:01:38.5]} 19. Qxd2 {[%clk 0:03:03.3]} 19... Rc8
{[%clk 0:01:37]} 20. Rg1 {[%clk 0:03:00.8]} 20... Rxc1 {[%clk 0:01:34.1]} 21.
Qxc1 {[%clk 0:03:02.7]} 21... Qc7 {[%clk 0:01:09.7]} 22. Qg5 {[%clk 0:03:02.8]}
22... Ne8 {[%clk 0:00:54.6]} 23. Qh4 {[%clk 0:03:03.7]} 23... Qf4 {[%clk
0:00:38.6]} 24. Qh3 {[%clk 0:03:04.6]} 24... h6 {[%clk 0:00:20.2]} 25. Rg4
{[%clk 0:02:58.3]} 25... Qc1+ {[%clk 0:00:20.1]} 26. Rg1 {[%clk 0:02:59.5]}
26... Qf4 {[%clk 0:00:20.9]} 27. Qg2 {[%clk 0:03:01]} 27... Kh8 {[%clk
0:00:17.2]} 28. Ng3 {[%clk 0:03:01.8]} 28... Rg8 {[%clk 0:00:16]} 29. Be4 {[%clk
0:03:02.7]} 29... Nef6 {[%clk 0:00:16.1]} 30. Ne2 {[%clk 0:03:03.8]} 30... Qd2
{[%clk 0:00:16.6]} 31. Ng3 {[%clk 0:03:03.7]} 31... Qxd4 {[%clk 0:00:16.9]} 32.
Bxd5 {[%clk 0:02:59.3]} 32... Nxd5 {[%clk 0:00:16.3]} 33. Ne4 {[%clk 0:03:00.9]}
33... Qe5 {[%clk 0:00:16.2]} 34. Qg3 {[%clk 0:02:57.6]} 34... Qxg3 {[%clk
0:00:16]} 35. hxg3 {[%clk 0:02:58.5]} 35... Rd8 {[%clk 0:00:15.3]} 36. Rc1
{[%clk 0:02:58.1]} 36... Kg8 {[%clk 0:00:14.6]} 37. Kg2 {[%clk 0:02:58.9]} 37...
Kf8 {[%clk 0:00:15.7]} 38. g4 {[%clk 0:02:54.7]} 38... Ke7 {[%clk 0:00:16.3]}
39. Kg3 {[%clk 0:02:56]} 39... Kd7 {[%clk 0:00:15.6]} 40. f4 {[%clk 0:02:55.5]}
40... Rc8 {[%clk 0:00:15.9]} 41. Rd1 {[%clk 0:02:57]} 41... Ke7 {[%clk
0:00:13.9]} 42. Rd2 {[%clk 0:02:56.6]} 42... Rc1 {[%clk 0:00:14.7]} 43. f5
{[%clk 0:02:50.4]} 43... Rg1+ {[%clk 0:00:12.9]} 44. Kf3 {[%clk 0:02:51.1]}
44... Ra1 {[%clk 0:00:09.9]} 45. a3 {[%clk 0:02:51.9]} 45... Rh1 {[%clk
0:00:06.9]} 46. Kg3 {[%clk 0:02:50.3]} 46... Rg1+ {[%clk 0:00:07.2]} 47. Kf3
{[%clk 0:02:51.8]} 47... Rc1 {[%clk 0:00:06.6]} 48. Ng3 {[%clk 0:02:49.9]} 48...
Rc4 {[%clk 0:00:05.7]} 49. Ne4 {[%clk 0:02:47.9]} 49... Rc8 {[%clk 0:00:04.4]}
50. Ng3 {[%clk 0:02:46.9]} 50... Rc7 {[%clk 0:00:05.2]} 51. Re2 {[%clk
0:02:47.8]} 51... Kd6 {[%clk 0:00:05.1]} 52. Nh5 {[%clk 0:02:47.3]} 52... g6
{[%clk 0:00:05.1]} 53. Ng3 {[%clk 0:02:46.1]} 53... gxf5 {[%clk 0:00:05.6]} 54.
gxf5 {[%clk 0:02:47.1]} 54... Nf6 {[%clk 0:00:05.4]} 55. Kg2 {[%clk 0:02:45.1]}
55... Rc4 {[%clk 0:00:05.7]} 56. Rd2+ {[%clk 0:02:46.3]} 56... Ke7 {[%clk
0:00:06]} 57. Re2 {[%clk 0:02:43.4]} 57... Rf4 {[%clk 0:00:06.4]} 58. Rc2 {[%clk
0:02:41.7]} 58... exf5 {[%clk 0:00:05.5]} 59. Rc7+ {[%clk 0:02:42.4]} 59... Kf8
{[%clk 0:00:06.7]} 60. Rxa7 {[%clk 0:02:43.5]} 60... Ne4 {[%clk 0:00:07.6]} 61.
Ra8+ {[%clk 0:02:43.5]} 61... Ke7 {[%clk 0:00:07.5]} 62. Ra7+ {[%clk 0:02:45]}
62... Ke6 {[%clk 0:00:08.3]} 63. Nxe4 {[%clk 0:02:40.2]} 63... fxe4 {[%clk
0:00:08.9]} 64. Ra6 {[%clk 0:02:41.4]} 64... Rf6 {[%clk 0:00:08.7]} 65. Rxb6+
{[%clk 0:02:42.3]} 65... Kf5 {[%clk 0:00:09.9]} 66. Rxf6+ {[%clk 0:02:15.9]}
66... Kxf6 {[%clk 0:00:09.4]} 67. a4 {[%clk 0:02:17.4]} 67... Ke6 {[%clk
0:00:09.7]} 68. a5 {[%clk 0:02:18.1]} 68... Kd6 {[%clk 0:00:10.7]} 69. Kg3
{[%clk 0:02:16.8]} 69... h5 {[%clk 0:00:10.3]} 70. Kh4 {[%clk 0:02:16.5]} 70...
f5 {[%clk 0:00:11.5]} 71. Kxh5 {[%clk 0:02:13.5]} 71... f4 {[%clk 0:00:12.8]}
72. Kg4 {[%clk 0:02:14.5]} 72... e3 {[%clk 0:00:14.2]} 73. fxe3 {[%clk
0:02:15.8]} 73... fxe3 {[%clk 0:00:16.1]} 74. Kf3 {[%clk 0:02:17.3]} 1-0

[Event "*** Titled Tuesday Blitz"]
[Site "Chess.com"]
[Date "2019.03.05"]
[Round "8"]
[White "Hikaru"]
[Black "KhalilMousavi77"]
[Result "1-0"]
[WhiteElo "3126"]
[BlackElo "2691"]
[TimeControl "180+2"]
[EndTime "14:58:50 PST"]
[Termination "Hikaru won by resignation"]

1. Nf3 {[%clk 0:03:01.9]} 1... Nf6 {[%clk 0:02:59.6]} 2. b3 {[%clk 0:03:03.4]}
2... d6 {[%clk 0:03:00.1]} 3. Bb2 {[%clk 0:03:05.3]} 3... e5 {[%clk 0:03:01.1]}
4. e3 {[%clk 0:03:06.5]} 4... c5 {[%clk 0:03:00.6]} 5. Nc3 {[%clk 0:03:04]} 5...
Nc6 {[%clk 0:02:57.8]} 6. Bb5 {[%clk 0:03:04.8]} 6... Bd7 {[%clk 0:02:54.6]} 7.
O-O {[%clk 0:03:00.6]} 7... Be7 {[%clk 0:02:54.2]} 8. Re1 {[%clk 0:02:51.7]}
8... O-O {[%clk 0:02:53.1]} 9. d4 {[%clk 0:02:43.5]} 9... e4 {[%clk 0:02:52.3]}
10. Nd2 {[%clk 0:02:44.4]} 10... d5 {[%clk 0:02:46.4]} 11. dxc5 {[%clk
0:02:45.4]} 11... Bxc5 {[%clk 0:02:46.5]} 12. Nxd5 {[%clk 0:02:38.8]} 12... Nxd5
{[%clk 0:02:34.1]} 13. Nxe4 {[%clk 0:02:40.2]} 13... Bb4 {[%clk 0:01:53.2]} 14.
Qxd5 {[%clk 0:02:37.8]} 14... Bxe1 {[%clk 0:01:53.9]} 15. Rxe1 {[%clk
0:02:39.7]} 15... Be6 {[%clk 0:01:34.6]} 16. Qxd8 {[%clk 0:02:33.4]} 16... Rfxd8
{[%clk 0:01:36.5]} 17. Bxc6 {[%clk 0:02:06.7]} 17... bxc6 {[%clk 0:01:37.2]} 18.
Bd4 {[%clk 0:02:08.3]} 18... Bf5 {[%clk 0:01:35]} 19. Nc5 {[%clk 0:02:09.5]}
19... Bxc2 {[%clk 0:01:35.2]} 20. Rc1 {[%clk 0:02:11.1]} 20... Bf5 {[%clk
0:01:32.5]} 21. f3 {[%clk 0:02:12.1]} 21... f6 {[%clk 0:01:23.1]} 22. Kf2 {[%clk
0:02:13.2]} 22... Kf7 {[%clk 0:01:19.8]} 23. Rc4 {[%clk 0:02:13.8]} 23... a5
{[%clk 0:01:17.4]} 24. e4 {[%clk 0:02:11.4]} 24... Be6 {[%clk 0:01:08.7]} 25.
Nxe6 {[%clk 0:01:29.8]} 25... Kxe6 {[%clk 0:01:10.6]} 26. Rxc6+ {[%clk
0:01:31.4]} 26... Rd6 {[%clk 0:01:10.4]} 27. Rc4 {[%clk 0:01:32.6]} 27... a4
{[%clk 0:01:07.8]} 28. b4 {[%clk 0:01:29.3]} 28... a3 {[%clk 0:00:56.9]} 29. Ke3
{[%clk 0:01:14.7]} 29... Rb8 {[%clk 0:00:53.1]} 30. Kd3 {[%clk 0:01:13.8]} 30...
g5 {[%clk 0:00:42.4]} 31. Kc3 {[%clk 0:01:01.4]} 31... h5 {[%clk 0:00:43.3]} 32.
Kb3 {[%clk 0:01:01.9]} 32... Rbd8 {[%clk 0:00:43.9]} 33. Bc3 {[%clk 0:01:03]}
33... Rd1 {[%clk 0:00:41.6]} 34. Kxa3 {[%clk 0:00:33.5]} 34... Rb1 {[%clk
0:00:22.8]} 35. Rc6+ {[%clk 0:00:34.5]} 35... Kd7 {[%clk 0:00:24.3]} 36. Ra6
{[%clk 0:00:35.6]} 36... g4 {[%clk 0:00:20.9]} 37. Bxf6 {[%clk 0:00:36.3]} 37...
Re8 {[%clk 0:00:18.2]} 38. e5 {[%clk 0:00:33.9]} 38... gxf3 {[%clk 0:00:17.1]}
39. gxf3 {[%clk 0:00:35.3]} 39... Rh1 {[%clk 0:00:16]} 40. h4 {[%clk 0:00:36.2]}
40... Rh3 {[%clk 0:00:16.4]} 41. Kb3 {[%clk 0:00:34.9]} 41... Rxf3+ {[%clk
0:00:16.5]} 42. Kc4 {[%clk 0:00:36.4]} 42... Rc8+ {[%clk 0:00:17.2]} 43. Kd5
{[%clk 0:00:34.8]} 43... Rd3+ {[%clk 0:00:16.3]} 44. Ke4 {[%clk 0:00:36.1]}
44... Rd1 {[%clk 0:00:12.1]} 45. Kf5 {[%clk 0:00:36.9]} 45... Rf1+ {[%clk
0:00:11.1]} 46. Kg6 {[%clk 0:00:38.2]} 46... Ke8 {[%clk 0:00:11]} 47. Ra7 {[%clk
0:00:35.3]} 47... Rg1+ {[%clk 0:00:11.4]} 48. Kxh5 {[%clk 0:00:36.6]} 48... Kf8
{[%clk 0:00:07.1]} 49. b5 {[%clk 0:00:36.9]} 49... Kg8 {[%clk 0:00:07.1]} 50. b6
{[%clk 0:00:38.4]} 1-0

[Event "*** Titled Tuesday Blitz"]
[Site "Chess.com"]
[Date "2019.03.05"]
[Round "8"]
[White "MathiasWomacka"]
[Black "tomozupan"]
[Result "1/2-1/2"]
[WhiteElo "2268"]
[BlackElo "2230"]
[TimeControl "180+2"]
[EndTime "14:58:50 PST"]
[Termination "Game drawn by agreement"]

1. e4 {[%clk 0:03:01.9]} 1... e5 {[%clk 0:02:59]} 2. Nf3 {[%clk 0:03:02.6]} 2...
Nc6 {[%clk 0:03:00]} 3. Bb5 {[%clk 0:03:03.7]} 3... Nge7 {[%clk 0:03:00]} 4. Nc3
{[%clk 0:02:52.2]} 4... d6 {[%clk 0:02:56.7]} 5. d4 {[%clk 0:02:52.7]} 5... exd4
{[%clk 0:02:51.6]} 6. Nxd4 {[%clk 0:02:50.1]} 6... Bd7 {[%clk 0:02:52.7]} 7. Be3
{[%clk 0:02:45.7]} 7... a6 {[%clk 0:02:37.1]} 8. Bc4 {[%clk 0:02:41.6]} 8... b5
{[%clk 0:02:37.1]} 9. Nxc6 {[%clk 0:02:32.7]} 9... Bxc6 {[%clk 0:02:30.5]} 10.
Bb3 {[%clk 0:02:33.6]} 10... Ng6 {[%clk 0:02:22.5]} 11. O-O {[%clk 0:02:33.6]}
11... Be7 {[%clk 0:02:20.7]} 12. Nd5 {[%clk 0:02:22.8]} 12... O-O {[%clk
0:02:20.8]} 13. Qh5 {[%clk 0:02:20.9]} 13... Bf6 {[%clk 0:02:09.1]} 14. c3
{[%clk 0:02:21.7]} 14... Bxd5 {[%clk 0:02:02.9]} 15. Bxd5 {[%clk 0:02:19.5]}
15... Rc8 {[%clk 0:02:01.1]} 16. Bb7 {[%clk 0:02:01.1]} 16... Rb8 {[%clk
0:02:01.2]} 17. Bxa6 {[%clk 0:02:02.2]} 17... c6 {[%clk 0:01:58.6]} 18. a4
{[%clk 0:02:02.5]} 18... b4 {[%clk 0:01:50.4]} 19. cxb4 {[%clk 0:01:52.3]} 19...
Rxb4 {[%clk 0:01:49.7]} 20. a5 {[%clk 0:01:39.7]} 20... Bxb2 {[%clk 0:01:48.3]}
21. Ra2 {[%clk 0:01:40.2]} 21... Ne5 {[%clk 0:01:41.5]} 22. Be2 {[%clk
0:01:23.3]} 22... Bd4 {[%clk 0:01:27.6]} 23. Bd2 {[%clk 0:01:21.5]} 23... Rb2
{[%clk 0:01:23.3]} 24. Rxb2 {[%clk 0:01:21.7]} 24... Bxb2 {[%clk 0:01:24.1]} 25.
Rb1 {[%clk 0:01:20.6]} 25... Bd4 {[%clk 0:01:24]} 26. Qh3 {[%clk 0:00:55.5]}
26... c5 {[%clk 0:01:15.4]} 27. Qa3 {[%clk 0:00:53.2]} 27... c4 {[%clk
0:01:15.5]} 28. Be3 {[%clk 0:00:48.6]} 28... Bxe3 {[%clk 0:01:12.4]} 29. Qxe3
{[%clk 0:00:49.9]} 29... Qc7 {[%clk 0:01:12.7]} 30. Qb6 {[%clk 0:00:48]} 30...
Qxb6 {[%clk 0:01:01.4]} 31. axb6 {[%clk 0:00:49.9]} 31... Rb8 {[%clk 0:00:56.3]}
32. f4 {[%clk 0:00:45.2]} 32... Nd7 {[%clk 0:00:54.9]} 33. Bxc4 {[%clk
0:00:32.5]} 33... Rxb6 {[%clk 0:00:53.7]} 34. Ra1 {[%clk 0:00:31.9]} 34... Kf8
{[%clk 0:00:53.1]} 35. Ra7 {[%clk 0:00:32.1]} 35... Ke7 {[%clk 0:00:51.9]} 36.
Bxf7 {[%clk 0:00:30.6]} 36... Rb2 {[%clk 0:00:26.2]} 37. Bd5 {[%clk 0:00:27.3]}
37... Rc2 {[%clk 0:00:26.8]} 38. h4 {[%clk 0:00:23.2]} 38... h6 {[%clk
0:00:27.9]} 39. h5 {[%clk 0:00:24]} 39... Kd8 {[%clk 0:00:26.9]} 40. Kh2 {[%clk
0:00:15.9]} 40... Nf6 {[%clk 0:00:27.8]} 41. Rxg7 {[%clk 0:00:15.6]} 41... Nxh5
{[%clk 0:00:28.9]} 42. Rg6 {[%clk 0:00:12.8]} 42... Nxf4 {[%clk 0:00:28.9]} 43.
Rxd6+ {[%clk 0:00:12.4]} 43... Ke7 {[%clk 0:00:29.7]} 44. Rxh6 {[%clk
0:00:13.4]} 44... Rxg2+ {[%clk 0:00:29.1]} 45. Kh1 {[%clk 0:00:14.2]} 45... Re2
{[%clk 0:00:26.6]} 46. Rh4 {[%clk 0:00:13.5]} 46... Nxd5 {[%clk 0:00:27]} 47.
exd5 {[%clk 0:00:15.4]} 47... Kd6 {[%clk 0:00:27.9]} 48. Kg1 {[%clk 0:00:15.8]}
48... Kxd5 {[%clk 0:00:27.7]} 49. Ra4 {[%clk 0:00:17.2]} 49... Rb2 {[%clk
0:00:28.1]} 50. Kf1 {[%clk 0:00:17.9]} 1/2-1/2

[Event "*** Titled Tuesday Blitz"]
[Site "Chess.com"]
[Date "2019.03.05"]
[Round "8"]
[White "marianokar"]
[Black "vinniethepooh"]
[Result "1-0"]
[WhiteElo "2445"]
[BlackElo "2468"]
[TimeControl "180+2"]
[EndTime "14:58:57 PST"]
[Termination "marianokar won by resignation"]

1. Nf3 {[%clk 0:03:01.9]} 1... d5 {[%clk 0:02:59]} 2. c4 {[%clk 0:03:01]} 2...
d4 {[%clk 0:02:59.4]} 3. g3 {[%clk 0:03:02]} 3... Nc6 {[%clk 0:02:56.1]} 4. Bg2
{[%clk 0:03:03.2]} 4... e5 {[%clk 0:02:57.4]} 5. O-O {[%clk 0:03:02.1]} 5... g6
{[%clk 0:02:55]} 6. b4 {[%clk 0:02:59.1]} 6... Bxb4 {[%clk 0:02:42.9]} 7. Nxe5
{[%clk 0:02:53.7]} 7... Nxe5 {[%clk 0:02:37.4]} 8. Qa4+ {[%clk 0:02:53.8]} 8...
Nc6 {[%clk 0:01:50.1]} 9. Bxc6+ {[%clk 0:02:53.3]} 9... bxc6 {[%clk 0:01:52]}
10. Qxb4 {[%clk 0:02:54.8]} 10... Ne7 {[%clk 0:01:43.7]} 11. Ba3 {[%clk
0:02:53.8]} 11... Bh3 {[%clk 0:01:26.6]} 12. Re1 {[%clk 0:02:51.6]} 12... Nf5
{[%clk 0:01:13.1]} 13. d3 {[%clk 0:02:25.5]} 13... h5 {[%clk 0:01:06.3]} 14. Nd2
{[%clk 0:02:20.5]} 14... Nd6 {[%clk 0:00:37.7]} 15. Qc5 {[%clk 0:02:12.5]} 15...
O-O {[%clk 0:00:20.7]} 16. Qxd4 {[%clk 0:02:13.4]} 16... Re8 {[%clk 0:00:19.2]}
17. Bb2 {[%clk 0:02:11.1]} 17... f6 {[%clk 0:00:12.2]} 18. Qxf6 {[%clk 0:02:11]}
18... Qxf6 {[%clk 0:00:14.1]} 19. Bxf6 {[%clk 0:02:11.3]} 19... Re6 {[%clk
0:00:15.3]} 20. Bc3 {[%clk 0:02:05.1]} 20... h4 {[%clk 0:00:12.3]} 21. f3 {[%clk
0:02:02.8]} 21... Nf5 {[%clk 0:00:11.2]} 22. Kf2 {[%clk 0:02:03]} 22... Ne3
{[%clk 0:00:10.6]} 23. Ne4 {[%clk 0:01:57.2]} 23... Nc2 {[%clk 0:00:10.9]} 24.
Ng5 {[%clk 0:01:57.6]} 24... Bf5 {[%clk 0:00:07.7]} 25. g4 {[%clk 0:01:52.7]}
25... Re7 {[%clk 0:00:06.3]} 26. gxf5 {[%clk 0:01:52.4]} 26... gxf5 {[%clk
0:00:07]} 27. Rg1 {[%clk 0:01:46.8]} 27... Nxa1 {[%clk 0:00:07.9]} 28. Bxa1
{[%clk 0:01:43.3]} 28... Rae8 {[%clk 0:00:09.4]} 29. e4 {[%clk 0:01:38.7]} 29...
c5 {[%clk 0:00:09.2]} 30. Bc3 {[%clk 0:01:34.6]} 30... c6 {[%clk 0:00:06.4]} 31.
Ne6+ {[%clk 0:01:22]} 31... Kf7 {[%clk 0:00:05.3]} 32. Ng7 {[%clk 0:01:23.1]}
32... Rb8 {[%clk 0:00:03.4]} 33. Nxf5 {[%clk 0:01:21.7]} 33... Re6 {[%clk
0:00:05.3]} 34. Rg7+ {[%clk 0:01:21.4]} 34... Kf8 {[%clk 0:00:06.4]} 35. Rxa7
{[%clk 0:01:19.5]} 35... Rb1 {[%clk 0:00:07.8]} 36. Bg7+ {[%clk 0:01:15.9]}
36... Ke8 {[%clk 0:00:07.4]} 37. Nxh4 {[%clk 0:01:12.2]} 37... Rh1 {[%clk
0:00:06.3]} 38. Kg2 {[%clk 0:01:11.1]} 38... Rd1 {[%clk 0:00:06.9]} 39. a4
{[%clk 0:01:07.2]} 39... Rxd3 {[%clk 0:00:07.1]} 40. a5 {[%clk 0:01:07.6]} 40...
Rd2+ {[%clk 0:00:03.9]} 41. Kg3 {[%clk 0:01:07.2]} 41... Rc2 {[%clk 0:00:04.9]}
42. a6 {[%clk 0:01:07.2]} 42... Rxc4 {[%clk 0:00:06.2]} 43. Rc7 {[%clk
0:00:54.2]} 43... Ra4 {[%clk 0:00:05]} 44. a7 {[%clk 0:00:54.2]} 44... Kd8
{[%clk 0:00:06.4]} 45. Rb7 {[%clk 0:00:54.4]} 45... Re7 {[%clk 0:00:05.9]} 46.
Bf6 {[%clk 0:00:54.1]} 46... Rxa7 {[%clk 0:00:04.8]} 47. Rxa7 {[%clk 0:00:54]}
47... Kc8 {[%clk 0:00:04.6]} 48. Rxe7 {[%clk 0:00:53.9]} 48... c4 {[%clk
0:00:06.5]} 49. Nf5 {[%clk 0:00:53.4]} 49... c3 {[%clk 0:00:08.4]} 50. Bxc3
{[%clk 0:00:54.4]} 50... Kb8 {[%clk 0:00:07.3]} 51. h4 {[%clk 0:00:55.7]} 51...
c5 {[%clk 0:00:09]} 52. h5 {[%clk 0:00:56.7]} 52... c4 {[%clk 0:00:10.9]} 53. h6
{[%clk 0:00:57.7]} 53... Kc8 {[%clk 0:00:12.8]} 54. h7 {[%clk 0:00:58.5]} 54...
Kd8 {[%clk 0:00:14.7]} 1-0

[Event "*** Titled Tuesday Blitz"]
[Site "Chess.com"]
[Date "2019.03.05"]
[Round "8"]
[White "BlackBoarder"]
[Black "Rashad_Zeynalli"]
[Result "0-1"]
[WhiteElo "2527"]
[BlackElo "2413"]
[TimeControl "180+2"]
[EndTime "14:58:59 PST"]
[Termination "Rashad_Zeynalli won by checkmate"]

1. e4 {[%clk 0:03:01.9]} 1... d6 {[%clk 0:02:58.3]} 2. d4 {[%clk 0:03:02.5]}
2... Nf6 {[%clk 0:02:59.1]} 3. Nc3 {[%clk 0:02:59]} 3... g6 {[%clk 0:03:00.1]}
4. Be2 {[%clk 0:02:54.1]} 4... Bg7 {[%clk 0:03:00.8]} 5. h4 {[%clk 0:02:55.1]}
5... c5 {[%clk 0:02:56.3]} 6. d5 {[%clk 0:02:55.1]} 6... h5 {[%clk 0:02:54.2]}
7. Nf3 {[%clk 0:02:55.4]} 7... O-O {[%clk 0:02:54.3]} 8. O-O {[%clk 0:02:56.2]}
8... e6 {[%clk 0:02:52.9]} 9. dxe6 {[%clk 0:02:49]} 9... Bxe6 {[%clk 0:02:52.8]}
10. Bg5 {[%clk 0:02:41.8]} 10... Nc6 {[%clk 0:02:52.4]} 11. Qd2 {[%clk
0:02:40.4]} 11... Qb6 {[%clk 0:02:35.2]} 12. Rab1 {[%clk 0:02:17.3]} 12... Nd4
{[%clk 0:02:34.2]} 13. Nxd4 {[%clk 0:02:14.3]} 13... cxd4 {[%clk 0:02:36.1]} 14.
Na4 {[%clk 0:01:51.3]} 14... Qc6 {[%clk 0:02:34.6]} 15. Qxd4 {[%clk 0:01:26.6]}
15... Nxe4 {[%clk 0:02:31.5]} 16. Qb4 {[%clk 0:01:26.4]} 16... Nxg5 {[%clk
0:02:10.6]} 17. hxg5 {[%clk 0:01:26.1]} 17... Qxc2 {[%clk 0:02:11.5]} 18. Bf3
{[%clk 0:01:17.7]} 18... a5 {[%clk 0:02:08]} 19. Qe4 {[%clk 0:00:42.5]} 19...
Bf5 {[%clk 0:02:02]} 20. Qh4 {[%clk 0:00:20.7]} 20... Rac8 {[%clk 0:02:02.3]}
21. Nb6 {[%clk 0:00:15.7]} 21... Rc5 {[%clk 0:01:57.9]} 22. Nd5 {[%clk
0:00:13.8]} 22... Re8 {[%clk 0:01:54.4]} 23. Nf6+ {[%clk 0:00:12]} 23... Bxf6
{[%clk 0:01:55.2]} 24. gxf6 {[%clk 0:00:13.9]} 24... Qd2 {[%clk 0:01:52.3]} 25.
Rbd1 {[%clk 0:00:12]} 25... Qxb2 {[%clk 0:01:52.2]} 26. Rxd6 {[%clk 0:00:11.6]}
26... Rc1 {[%clk 0:01:52.7]} 27. Rxc1 {[%clk 0:00:07.2]} 27... Qxc1+ {[%clk
0:01:54.6]} 28. Rd1 {[%clk 0:00:08.8]} 28... Re1+ {[%clk 0:01:54.2]} 29. Rxe1
{[%clk 0:00:06.4]} 29... Qxe1+ {[%clk 0:01:56.1]} 30. Kh2 {[%clk 0:00:08.1]}
30... Qe5+ {[%clk 0:01:56]} 31. g3 {[%clk 0:00:09]} 31... Qb2 {[%clk 0:01:54.6]}
32. Kg2 {[%clk 0:00:06.2]} 32... Qxa2 {[%clk 0:01:50.1]} 33. Qf4 {[%clk
0:00:04.6]} 33... Qb2 {[%clk 0:01:38.1]} 34. Qd6 {[%clk 0:00:04.2]} 34... a4
{[%clk 0:01:26.2]} 35. Bd5 {[%clk 0:00:03.7]} 35... Be6 {[%clk 0:00:36.2]} 36.
Qd8+ {[%clk 0:00:03.9]} 36... Kh7 {[%clk 0:00:35.3]} 37. Bxe6 {[%clk 0:00:05.8]}
37... Qe2 {[%clk 0:00:09.7]} 38. Bxf7 {[%clk 0:00:05.2]} 38... Qe4+ {[%clk
0:00:11.1]} 39. Kh2 {[%clk 0:00:05.3]} 39... Kh6 {[%clk 0:00:11.7]} 40. Qf8+
{[%clk 0:00:03.3]} 40... Kg5 {[%clk 0:00:12.4]} 41. Ba2 {[%clk 0:00:04]} 41...
Qd4 {[%clk 0:00:12.2]} 42. Kg2 {[%clk 0:00:03.3]} 42... Qe4+ {[%clk 0:00:12.4]}
43. Kg1 {[%clk 0:00:03.7]} 43... Qe1+ {[%clk 0:00:13.2]} 44. Kg2 {[%clk
0:00:05.1]} 44... Qe4+ {[%clk 0:00:15]} 45. Kh2 {[%clk 0:00:06.4]} 45... Qd4
{[%clk 0:00:16.1]} 46. f4+ {[%clk 0:00:05.8]} 46... Kg4 {[%clk 0:00:17]} 47.
Qc8+ {[%clk 0:00:06]} 47... Kf3 {[%clk 0:00:17.3]} 48. f7 {[%clk 0:00:03.1]}
48... Qf2+ {[%clk 0:00:17.6]} 49. Kh3 {[%clk 0:00:03.2]} 49... Qxg3# {[%clk
0:00:18.7]} 0-1